bitfinex/quotes_SOLUSD_20240809
["timestamp","ask_amount","ask_price","bid_price","bid_amount"]
[1723166423569,6.1923,161.49,161.43,22.1735]
[1723166423878,33.26,161.52,161.43,22.1735]
[1723166423879,33.26,161.52,161.44,6.1942]
[1723166424042,33.26,161.52,161.43,16.68671232]
[1723166424043,33.26,161.52,161.43,22.1735]
[1723166424468,6.6612,161.57,161.43,22.1735]
[1723166424469,6.1931,161.47,161.43,15.979]
[1723166425053,6.1927,161.48,161.43,15.979]
[1723166425269,92.2517,161.56,161.43,15.979]
[1723166425270,33.26,161.54,161.44,16.19338968]
[1723166425485,6.1915,161.52,161.46,6.1934]
[1723166425984,33.26,161.54,161.44,15.4855]
[1723166426160,6.193,161.48,161.43,15.979]
[1723166426550,33.26,161.52,161.43,15.979]
[1723166426551,6.1923,161.49,161.43,15.979]
[1723166427173,6.1923,161.49,161.43,22.1735]
[1723166427980,6.1927,161.48,161.43,15.979]
[1723166428347,53.26,161.53,161.44,15.4855]
[1723166428663,6.1909,161.53,161.47,6.1929]
[1723166429172,6.1922,161.5,161.44,21.6794]
[1723166429548,33.26,161.55,161.46,6.1934]
[1723166429959,6.1918,161.51,161.45,6.1938]
[1723166430875,20.0,161.54,161.45,6.1938]
[1723166430876,6.1912,161.52,161.47,6.193]
[1723166431475,6.1908,161.53,161.48,6.89951608]
[1723166431788,20.0,161.54,161.48,6.1926]
[1723166432086,6.19,161.55,161.49,6.89857474]
[1723166432289,20.0,161.56,161.48,6.1926]
[1723166432591,33.26,161.55,161.43,64.7255]
[1723166432763,33.26,161.53,161.43,64.7255]
[1723166432969,6.1926,161.49,161.43,31.4655]
[1723166433487,6.1926,161.49,161.44,6.1942]
[1723166433685,6.192,161.5,161.44,6.1942]
[1723166434573,33.26,161.53,161.44,6.1942]
[1723166434894,33.26,161.49,161.39,31.2072]
[1723166435188,6.1946,161.43,161.39,31.2072]
[1723166435390,6.1946,161.43,161.37,6.1969]
[1723166435570,6.1946,161.43,161.38,6.1964]
[1723166436489,33.26,161.47,161.38,15.4904]
[1723166436800,31.1918,161.51,161.41,33.26]
[1723166436801,33.26,161.51,161.41,33.26]
[1723166436982,20.0,161.5,161.41,33.26]
[1723166437300,26.1922,161.5,161.43,6.1945]
[1723166437463,26.1922,161.5,161.44,6.1941]
[1723166437666,20.0,161.5,161.43,6.1945]
[1723166438688,33.26,161.51,161.45,6.1937]
[1723166438991,6.1921,161.5,161.44,31.0086]
[1723166439161,6.1932,161.47,161.43,6.4846]
[1723166439484,6.1932,161.47,161.42,6.1949]
[1723166440064,34.80836592,161.47,161.4,15.5238]
[1723166440279,6.1949,161.43,161.38,15.4911]
[1723166440466,33.26,161.45,161.36,15.2857]
[1723166440676,20.0,161.44,161.36,15.2857]
[1723166441066,6.1965,161.38,161.36,15.2857]
[1723166441372,6.1965,161.38,161.34,6.6062]
[1723166441373,20.0,161.44,161.35,15.4939]
[1723166441673,26.1943,161.44,161.38,6.1964]
[1723166441877,6.1931,161.47,161.38,15.4913]
[1723166442093,26.1935,161.46,161.41,6.1953]
[1723166442259,6.1931,161.47,161.42,6.1949]
[1723166442465,6.0889,161.52,161.43,0.70794208]
[1723166442665,33.26,161.53,161.45,6.1936]
[1723166442859,33.26,161.53,161.43,0.70794208]
[1723166443090,2.40039446,161.55,161.46,6.1931]
[1723166443091,6.1912,161.52,161.46,6.1931]
[1723166443267,6.1912,161.52,161.47,0.70685912]
[1723166443466,6.1916,161.51,161.47,0.70685912]
[1723166443671,33.26,161.53,161.43,6.1992]
[1723166444184,6.1928,161.48,161.43,12.3938]
[1723166444392,6.1927,161.48,161.43,6.1992]
[1723166445174,39.451,161.53,161.47,6.193]
[1723166445375,6.1908,161.53,161.48,0.70686001]
[1723166445597,6.1908,161.53,161.48,6.89946001]
[1723166445771,6.1908,161.53,161.47,6.193]
[1723166445975,33.26,161.59,161.49,15.4803]
[1723166446200,33.26,161.59,161.49,16.1863042]
[1723166446406,33.26,161.59,161.5,16.1094]
[1723166446589,33.26,161.59,161.51,0.70599922]
[1723166447107,6.1902,161.55,161.5,16.1094]
[1723166447309,6.1904,161.54,161.5,16.1094]
[1723166449101,20.0,161.58,161.51,0.70615509]
[1723166449290,20.0,161.58,161.51,6.89735509]
[1723166449291,6.1896,161.57,161.51,6.89735509]
[1723166449681,33.26,161.63,161.52,94.44268721]
[1723166450099,39.72862653,161.63,161.52,94.44268721]
[1723166450286,6.1885,161.59,161.54,6.1903]
[1723166450484,6.1885,161.59,161.53,6.1904]
[1723166450879,6.1888,161.58,161.53,6.1904]
[1723166451095,6.1893,161.57,161.52,15.4771]
[1723166451402,6.1896,161.56,161.51,6.0805]
[1723166451795,6.1901,161.55,161.51,6.0805]
[1723166452187,6.1913,161.52,161.5,16.1094]
[1723166452908,6.1908,161.53,161.5,16.1094]
[1723166453277,6.1913,161.52,161.47,12.6156]
[1723166453511,6.1908,161.53,161.47,12.6156]
[1723166453688,15.4714,161.59,161.48,61.18794255]
[1723166453886,20.0,161.58,161.48,94.44794255]
[1723166454084,6.1908,161.53,161.48,22.38054255]
[1723166454389,6.1908,161.53,161.48,21.6739]
[1723166454705,6.1908,161.53,161.48,22.38020421]
[1723166455014,6.1911,161.52,161.48,15.4813]
[1723166455310,6.1908,161.53,161.48,15.4813]
[1723166456195,33.26,161.56,161.47,6.4226]
[1723166456405,20.0,161.55,161.47,6.4226]
[1723166456596,6.1912,161.52,161.47,6.4226]
[1723166456910,6.1907,161.54,161.47,6.4226]
[1723166457110,33.26,161.56,161.48,16.18732701]
[1723166457316,6.1893,161.57,161.49,0.70609905]
[1723166457612,6.1888,161.59,161.53,6.1906]
[1723166458188,6.1881,161.61,161.56,6.1896]
[1723166458482,33.26,161.6,161.54,15.4752]
[1723166458792,33.26,161.58,161.5,6.1918]
[1723166458995,6.1911,161.53,161.48,15.4817]
[1723166459304,39.4489,161.58,161.53,6.1907]
[1723166459712,6.1893,161.57,161.52,6.1911]
[1723166460099,6.1893,161.57,161.51,6.1915]
[1723166460621,33.26,161.58,161.51,0.70560583]
[1723166460825,6.189,161.58,161.53,21.6675]
[1723166461120,33.26,161.58,161.51,6.1912]
[1723166461318,33.26,161.56,161.5,15.4797]
[1723166461615,33.26,161.56,161.51,6.1914]
[1723166462524,39.4498,161.56,161.51,6.1914]
[1723166463826,33.26,161.56,161.5,15.4797]
[1723166464128,6.1917,161.51,161.47,6.4226]
[1723166464611,33.26,161.52,161.47,6.4226]
[1723166465519,33.26,161.54,161.5,6.1918]
[1723166465720,39.4505,161.54,161.49,6.1922]
[1723166466227,39.4505,161.54,161.48,21.6736]
[1723166466400,33.26,161.52,161.46,15.7221]
[1723166466608,33.26,161.5,161.46,15.7221]
[1723166466845,33.26,161.5,161.43,6.6601]
[1723166467023,6.1931,161.47,161.43,6.6601]
[1723166467203,6.1946,161.44,161.39,22.1504]
[1723166467545,39.4542,161.44,161.39,15.4903]
[1723166467831,39.4542,161.44,161.39,21.6864]
[1723166468032,39.4534,161.46,161.4,6.1956]
[1723166468215,15.4786,161.52,161.43,6.1944]
[1723166468410,6.2031,161.56,161.44,0.7076166]
[1723166468637,6.1904,161.54,161.49,6.1919]
[1723166468830,6.1904,161.54,161.49,6.1922]
[1723166469017,6.1904,161.54,161.49,6.89878259]
[1723166469209,6.1904,161.54,161.49,6.1922]
[1723166469539,6.1904,161.54,161.48,15.4817]
[1723166469540,6.1909,161.53,161.48,15.4817]
[1723166469754,33.26,161.54,161.48,15.4817]
[1723166470048,15.4713,161.59,161.51,15.4787]
[1723166470049,33.26,161.59,161.51,15.4787]
[1723166470252,33.26,161.57,161.49,6.2132]
[1723166470550,33.26,161.57,161.51,6.1914]
[1723166470927,6.1897,161.56,161.51,6.1914]
[1723166471323,39.4493,161.57,161.51,6.1914]
[1723166471521,39.4488,161.59,161.53,6.1907]
[1723166471745,20.0,161.58,161.51,6.1911]
[1723166471929,20.0,161.58,161.5,15.4797]
[1723166472132,20.0,161.58,161.5,22.37744838]
[1723166472133,6.19,161.55,161.5,22.37744838]
[1723166472335,33.26,161.55,161.49,6.2132]
[1723166472544,6.1912,161.52,161.46,21.6761]
[1723166472730,6.1915,161.51,161.46,21.6761]
[1723166473053,33.26,161.53,161.44,6.2026]
[1723166473054,6.192,161.5,161.44,6.2026]
[1723166473256,6.1923,161.49,161.44,12.3965]
[1723166473620,33.26,161.55,161.45,31.0771]
[1723166473932,6.1907,161.54,161.49,6.1923]
[1723166474423,39.45,161.55,161.5,6.8983415]
[1723166474617,6.1904,161.54,161.47,16.18823486]
[1723166475423,6.1916,161.51,161.45,21.7863]
[1723166475626,33.26,161.53,161.45,21.7863]
[1723166475627,6.192,161.5,161.45,21.7863]
[1723166475847,6.192,161.5,161.45,15.5925]
[1723166476444,6.192,161.5,161.45,21.7862]
[1723166476951,6.192,161.5,161.45,15.5925]
[1723166477250,6.192,161.5,161.36,35.66047003]
[1723166477251,33.26,161.49,161.41,16.3831]
[1723166477428,1.54844432,161.48,161.41,16.3831]
[1723166477629,33.26,161.49,161.4,6.2101]
[1723166477630,33.26,161.47,161.4,6.2101]
[1723166477867,1.54872054,161.46,161.4,6.2101]
[1723166478153,6.1938,161.46,161.41,0.70832978]
[1723166478338,6.1938,161.46,161.4,21.6994]
[1723166478635,6.194,161.45,161.4,21.6994]
[1723166479028,6.195,161.42,161.4,6.2101]
[1723166479232,33.26,161.47,161.4,6.2101]
[1723166480234,6.194,161.45,161.4,12.4058]
[1723166480435,33.26,161.45,161.37,16.3831]
[1723166480636,6.1955,161.41,161.37,16.3831]
[1723166481550,33.26,161.39,161.33,15.8129]
[1723166481763,6.1966,161.38,161.33,22.0113]
[1723166482335,6.1961,161.39,161.33,22.0113]
[1723166482557,6.1958,161.4,161.33,16.46536442]
[1723166482855,33.26,161.41,161.34,15.495]
[1723166483056,6.1962,161.39,161.34,21.693]
[1723166483361,6.1962,161.39,161.34,22.4028627]
[1723166483559,33.26,161.41,161.33,15.8129]
[1723166483560,6.1965,161.38,161.33,15.8129]
[1723166483858,35.73305815,161.41,161.34,6.198]
[1723166484053,33.26,161.45,161.38,6.1965]
[1723166484250,33.26,161.45,161.33,15.8129]
[1723166484251,6.1943,161.44,161.39,6.1961]
[1723166484436,33.26,161.45,161.37,15.4922]
[1723166484751,33.26,161.45,161.34,33.26]
[1723166484955,6.1962,161.39,161.33,37.5071]
[1723166485453,6.1962,161.39,161.34,6.1979]
[1723166486349,6.1962,161.39,161.33,31.3089]
[1723166486350,33.26,161.43,161.33,32.01870093]
[1723166486538,33.26,161.45,161.38,6.1964]
[1723166487235,6.195,161.42,161.36,21.6898]
[1723166487560,6.1954,161.41,161.36,21.6898]
[1723166487749,33.26,161.45,161.36,16.20194521]
[1723166488140,20.0,161.44,161.36,16.20194521]
[1723166488766,12.19298582,161.47,161.38,48.7505]
[1723166489060,33.26,161.49,161.39,0.70834324]
[1723166489634,6.1938,161.46,161.4,6.1957]
[1723166489947,6.4509,161.51,161.34,93.7548]
[1723166489948,34.80857295,161.45,161.34,93.7548]
[1723166490134,33.26,161.45,161.34,93.7548]
[1723166490470,33.26,161.43,161.35,6.1976]
[1723166490628,6.1962,161.39,161.34,21.6928]
[1723166491036,6.1966,161.38,161.33,15.8129]
[1723166491240,33.26,161.39,161.33,15.8129]
[1723166491435,6.1966,161.38,161.33,15.8129]
[1723166492031,6.1969,161.37,161.33,15.8129]
[1723166492236,6.1973,161.36,161.3,15.4982]
[1723166492470,33.26,161.37,161.3,15.4982]
[1723166492639,33.26,161.35,161.3,15.4982]
[1723166492838,34.80970399,161.35,161.3,15.4982]
[1723166493038,34.80970399,161.35,161.28,6.0106]
[1723166493341,6.1984,161.34,161.28,6.0106]
[1723166494065,6.1984,161.34,161.27,21.7022]
[1723166494245,33.26,161.35,161.27,21.7022]
[1723166494762,33.26,161.33,161.25,15.1916]
[1723166494969,33.26,161.33,161.25,21.3929]
[1723166494970,6.1996,161.3,161.25,21.3929]
[1723166495170,6.2001,161.29,161.23,15.505]
[1723166495466,6.2007,161.27,161.23,15.505]
[1723166495670,33.26,161.27,161.22,0.829037]
[1723166495841,39.4608,161.27,161.22,0.829037]
[1723166496364,33.26,161.27,161.22,0.829037]
[1723166496862,33.26,161.29,161.22,0.829037]
[1723166497160,6.2015,161.25,161.22,0.829037]
[1723166498243,6.2019,161.24,161.22,0.829037]
[1723166498439,1.55073119,161.26,161.22,0.829037]
[1723166498648,33.26,161.27,161.22,0.829037]
[1723166499468,39.4611,161.27,161.22,0.829037]
[1723166499844,6.2012,161.26,161.22,0.829037]
[1723166500666,34.81073131,161.25,161.22,0.829037]
[1723166500858,39.4623,161.23,161.22,0.829037]
[1723166502278,6.2019,161.24,161.22,0.829037]
[1723166502563,6.2023,161.23,161.22,0.829037]
[1723166502768,39.4623,161.23,161.22,0.829037]
[1723166502973,84.4623,161.23,161.22,0.829037]
[1723166503471,104.4623,161.23,161.22,0.829037]
[1723166503971,6.5382,161.24,161.22,0.829037]
[1723166504189,33.26,161.27,161.22,0.829037]
[1723166504472,39.4623,161.23,161.22,0.829037]
[1723166504785,59.4623,161.23,161.22,0.829037]
[1723166505494,39.7982,161.28,161.22,0.829037]
[1723166505495,6.202,161.24,161.22,0.829037]
[1723166506167,6.2023,161.23,161.22,0.829037]
[1723166507791,39.4619,161.25,161.22,0.829037]
[1723166507955,53.26,161.27,161.22,0.829037]
[1723166508681,6.2007,161.27,161.22,16.335637]
[1723166508874,33.26,161.27,161.22,0.829037]
[1723166509488,1.55063942,161.26,161.22,0.829037]
[1723166509687,33.26,161.29,161.22,0.829037]
[1723166509882,6.46247691,161.3,161.22,7.72530746]
[1723166509883,2.41031048,161.3,161.22,7.72530746]
[1723166510098,33.26,161.33,161.22,7.72530746]
[1723166510262,33.26,161.33,161.23,33.26]
[1723166510459,33.26,161.35,161.27,6.2004]
[1723166510772,33.26,161.35,161.24,15.5047]
[1723166510986,6.1995,161.31,161.25,6.2014]
[1723166511383,6.1988,161.32,161.24,15.5047]
[1723166511566,6.1985,161.33,161.27,6.2006]
[1723166512270,6.1981,161.34,161.26,15.5019]
[1723166512475,6.1977,161.36,161.3,6.1995]
[1723166512803,6.1961,161.4,161.31,0.71086569]
[1723166513101,33.26,161.41,161.32,6.1988]
[1723166513303,6.1978,161.35,161.31,15.498]
[1723166513674,6.1973,161.36,161.31,15.498]
[1723166514106,1.54949849,161.38,161.29,6.1656]
[1723166514304,6.1986,161.33,161.29,6.1656]
[1723166514675,6.198,161.34,161.29,6.1656]
[1723166515087,6.198,161.34,161.29,12.3655]
[1723166515504,6.1977,161.35,161.29,12.3655]
[1723166515680,33.26,161.37,161.3,6.1994]
[1723166515875,33.26,161.37,161.3,15.4986]
[1723166516081,26.1968,161.38,161.3,16.20913823]
[1723166517012,6.197,161.37,161.32,6.1988]
[1723166517302,6.1973,161.36,161.3,21.6979]
[1723166517605,6.1973,161.36,161.31,6.1991]
[1723166518173,20.0,161.38,161.31,6.1991]
[1723166518383,33.26,161.39,161.3,15.4986]
[1723166518606,33.26,161.41,161.33,15.4955]
[1723166518783,6.1962,161.39,161.34,6.198]
[1723166518983,6.1959,161.4,161.34,6.90793102]
[1723166519401,6.1962,161.39,161.34,6.198]
[1723166520423,6.1958,161.4,161.34,6.198]
[1723166520596,6.1964,161.39,161.33,21.6939]
[1723166520796,33.26,161.41,161.3,15.499]
[1723166520995,33.26,161.39,161.3,15.499]
[1723166521193,6.1969,161.37,161.32,6.1985]
[1723166521417,6.1969,161.37,161.3,15.499]
[1723166521418,6.1967,161.38,161.3,15.499]
[1723166521620,39.4565,161.39,161.33,6.1984]
[1723166521828,39.4546,161.43,161.34,0.70995845]
[1723166522036,6.1954,161.41,161.36,21.6904]
[1723166522204,33.26,161.43,161.31,33.26]
[1723166522603,6.1953,161.42,161.36,6.1973]
[1723166523734,33.26,161.43,161.37,6.1969]
[1723166524034,20.0,161.42,161.37,6.1969]
[1723166524238,6.1944,161.44,161.37,0.70929619]
[1723166524407,33.26,161.48,161.39,15.4903]
[1723166524609,6.1934,161.47,161.41,6.1951]
[1723166524922,6.1936,161.46,161.42,0.70817553]
[1723166525531,6.1938,161.45,161.39,21.6861]
[1723166525703,33.26,161.48,161.39,22.3944675]
[1723166525912,33.26,161.44,161.37,22.8401]
[1723166526626,6.195,161.42,161.37,22.8401]
[1723166526999,33.26,161.44,161.38,6.1964]
[1723166527198,33.26,161.44,161.37,22.8401]
[1723166527199,6.1944,161.44,161.39,21.6864]
[1723166528119,6.1938,161.45,161.39,21.6864]
[1723166528527,6.1938,161.45,161.4,6.1955]
[1723166528846,6.1942,161.44,161.39,21.6864]
[1723166529333,6.1939,161.45,161.39,15.4903]
[1723166529836,39.4535,161.46,161.4,6.1957]
[1723166530012,39.4535,161.46,161.41,6.1953]
[1723166530210,39.4535,161.46,161.4,6.1957]
[1723166530211,6.194,161.45,161.4,6.1957]
[1723166530706,33.26,161.46,161.41,6.1953]
[1723166531065,33.26,161.5,161.42,16.19548516]
[1723166531350,6.1915,161.51,161.44,15.4847]
[1723166531634,6.1912,161.52,161.46,21.5083]
[1723166531811,6.1915,161.51,161.46,15.3152]
[1723166532226,33.26,161.52,161.46,15.3152]
[1723166532424,6.1924,161.49,161.46,15.3152]
[1723166533020,6.1919,161.51,161.46,15.3152]
[1723166533231,6.1915,161.51,161.46,16.02224241]
[1723166533429,6.1915,161.51,161.46,15.3152]
[1723166533932,6.1915,161.51,161.46,21.5086]
[1723166534635,6.192,161.5,161.46,15.3152]
[1723166535527,33.26,161.56,161.47,16.1896712]
[1723166535715,6.19,161.55,161.47,16.1896712]
[1723166535913,6.19,161.55,161.5,6.1918]
[1723166536134,6.19,161.55,161.51,0.70608982]
[1723166536354,33.26,161.58,161.51,6.89748982]
[1723166536520,6.1896,161.56,161.51,0.70608982]
[1723166536716,33.26,161.6,161.5,15.4797]
[1723166537020,6.1885,161.59,161.53,6.1907]
[1723166537217,6.1885,161.59,161.54,6.89569413]
[1723166537417,6.1881,161.6,161.55,21.90069413]
[1723166537618,6.45616839,161.62,161.55,37.37479413]
[1723166537847,6.1873,161.62,161.57,6.1891]
[1723166538055,15.4645,161.66,161.55,21.1953]
[1723166538345,39.72343381,161.62,161.55,21.1953]
[1723166538652,6.1896,161.56,161.51,38.424]
[1723166538838,6.1885,161.59,161.51,38.424]
[1723166539025,6.1885,161.59,161.53,6.1907]
[1723166539352,6.189,161.58,161.53,6.1907]
[1723166539642,6.1888,161.59,161.53,6.1907]
[1723166539854,6.189,161.58,161.52,6.1911]
[1723166540052,33.26,161.59,161.51,22.946]
[1723166540347,6.1908,161.53,161.51,22.946]
[1723166540550,6.1904,161.54,161.51,22.946]
[1723166540923,6.1904,161.54,161.51,16.2911]
[1723166541244,39.4507,161.54,161.48,6.1923]
[1723166541453,6.1907,161.54,161.48,6.1923]
[1723166541637,6.191,161.53,161.47,42.9589]
[1723166542156,6.1896,161.56,161.5,15.4798]
[1723166542449,6.1901,161.55,161.5,15.4798]
[1723166542952,33.26,161.53,161.47,21.2841]
[1723166543323,33.26,161.55,161.48,0.70674535]
[1723166543645,6.1909,161.53,161.48,6.1923]
[1723166543845,33.26,161.58,161.49,15.4808]
[1723166544152,20.0,161.57,161.49,15.4808]
[1723166544354,20.0,161.57,161.5,45.7055358]
[1723166544527,39.4481,161.6,161.54,6.1903]
[1723166544723,6.1881,161.6,161.55,0.70497962]
[1723166544955,6.1881,161.6,161.55,17.21077962]
[1723166545131,33.26,161.6,161.55,16.5058]
[1723166545448,17.01340464,161.65,161.49,33.26]
[1723166545449,6.1904,161.54,161.51,16.1868]
[1723166546036,6.1919,161.5,161.47,21.3837]
[1723166546247,33.26,161.52,161.47,21.3837]
[1723166546558,6.1927,161.48,161.47,15.1307]
[1723166546860,6.1927,161.48,161.43,22.7264]
[1723166547041,6.1927,161.48,161.43,28.921]
[1723166547234,33.26,161.5,161.43,22.7264]
[1723166547548,6.1939,161.45,161.43,22.7264]
[1723166547731,33.26,161.48,161.43,22.7264]
[1723166548324,60.95781848,161.63,161.43,23.43431216]
[1723166548325,15.475,161.56,161.43,23.43431216]
[1723166548624,6.1922,161.5,161.44,6.1942]
[1723166548820,33.26,161.51,161.43,28.921]
[1723166549123,6.1929,161.48,161.43,22.7264]
[1723166549962,6.1929,161.48,161.43,28.921]
[1723166550559,6.1922,161.5,161.43,22.7264]
[1723166550857,15.4771,161.53,161.43,22.7264]
[1723166550858,33.26,161.53,161.44,16.19159085]
[1723166551072,33.26,161.55,161.47,15.4824]
[1723166551374,6.1915,161.52,161.47,15.4824]
[1723166551731,6.1915,161.52,161.47,22.38235228]
[1723166552444,6.1908,161.53,161.48,6.1926]
[1723166552754,6.1908,161.53,161.49,0.70661335]
[1723166553130,6.1908,161.53,161.48,6.1926]
[1723166553328,6.1908,161.53,161.47,15.4824]
[1723166553329,33.26,161.53,161.44,15.4855]
[1723166553526,6.1923,161.49,161.44,15.4855]
[1723166553954,6.1934,161.46,161.43,22.7264]
[1723166554450,6.1931,161.47,161.43,22.7264]
[1723166554961,39.4519,161.51,161.43,38.2126]
[1723166555145,6.1912,161.52,161.47,6.193]
[1723166555458,15.4732,161.57,161.43,55.9864]
[1723166555459,33.26,161.55,161.43,55.9864]
[1723166555636,6.1907,161.54,161.48,6.1926]
[1723166556135,6.1915,161.52,161.47,15.4817]
[1723166556333,33.26,161.53,161.43,38.2121]
[1723166556551,6.1919,161.5,161.44,6.1939]
[1723166556868,39.4509,161.53,161.48,6.1927]
[1723166557448,6.1924,161.49,161.44,6.194]
[1723166557649,6.1928,161.48,161.43,44.4074]
[1723166557961,33.26,161.51,161.43,22.7264]
[1723166558151,6.1931,161.47,161.43,22.7264]
[1723166558339,6.1926,161.49,161.43,28.9209]
[1723166558539,6.1926,161.49,161.44,6.1942]
[1723166558743,33.26,161.53,161.45,6.90126577]
[1723166558975,20.0,161.52,161.45,6.90126577]
[1723166559264,20.0,161.52,161.46,6.1934]
[1723166559644,39.4511,161.53,161.47,6.193]
[1723166561180,6.1936,161.46,161.43,22.7264]
[1723166561948,6.193,161.48,161.43,22.7264]
[1723166562373,33.26,161.51,161.44,0.70796399]
[1723166562374,6.1923,161.49,161.44,0.70796399]
[1723166563456,33.26,161.51,161.43,44.4075]
[1723166563457,6.1928,161.48,161.43,44.4075]
[1723166563653,33.26,161.51,161.44,6.1939]
[1723166563963,33.26,161.53,161.45,0.70744676]
[1723166564162,20.0,161.52,161.45,0.70744676]
[1723166564772,6.192,161.5,161.45,6.90094676]
[1723166565070,20.0,161.52,161.43,38.2129]
[1723166565252,33.26,161.51,161.43,38.2129]
[1723166565452,6.1926,161.49,161.44,0.7073884]
[1723166565684,6.1926,161.49,161.44,6.9014884]
[1723166565859,20.0,161.52,161.45,6.1938]
[1723166565860,6.1919,161.51,161.45,6.1938]
[1723166566054,6.1919,161.51,161.44,0.7073884]
[1723166566390,33.26,161.55,161.47,6.193]
[1723166566588,33.26,161.55,161.45,15.4837]
[1723166566589,6.1915,161.52,161.46,6.1934]
[1723166566749,6.1918,161.51,161.46,6.1934]
[1723166566949,6.192,161.5,161.45,21.6775]
[1723166567377,6.1924,161.49,161.45,15.4837]
[1723166567551,6.1927,161.48,161.43,28.921]
[1723166567884,6.1923,161.5,161.44,6.1941]
[1723166568059,6.1923,161.5,161.44,0.70751989]
[1723166568759,6.1923,161.5,161.43,38.212]
[1723166568958,6.1923,161.5,161.45,6.1938]
[1723166569665,6.1923,161.5,161.43,38.91942399]
[1723166569666,6.1924,161.49,161.44,6.1941]
[1723166570275,6.1927,161.48,161.43,44.4066]
[1723166570779,6.1924,161.49,161.43,44.4066]
[1723166570985,6.1924,161.49,161.44,6.1942]
[1723166572362,6.192,161.5,161.45,6.90136054]
[1723166572585,33.26,161.53,161.45,16.19146054]
[1723166572883,42.02011446,161.59,161.46,33.96697437]
[1723166573062,39.589,161.59,161.48,15.4817]
[1723166573381,6.1904,161.54,161.49,6.1922]
[1723166573599,2.41462241,161.61,161.51,15.4788]
[1723166573760,6.1897,161.56,161.51,15.4788]
[1723166573956,33.26,161.58,161.47,15.4818]
[1723166574368,33.26,161.58,161.48,6.1926]
[1723166574561,6.1904,161.54,161.48,6.1926]
[1723166574786,6.19,161.56,161.47,15.4818]
[1723166574991,6.1892,161.58,161.5,15.4793]
[1723166575188,6.1892,161.58,161.52,6.1911]
[1723166575388,33.26,161.62,161.53,15.4769]
[1723166575590,48.7273,161.64,161.55,6.19]
[1723166575770,6.2789,161.67,161.54,0.70526807]
[1723166575977,6.1865,161.64,161.59,6.1882]
[1723166576377,6.1862,161.65,161.59,6.1882]
[1723166576694,6.1862,161.65,161.6,0.7040111]
[1723166576904,10.64182882,161.68,161.61,16.3015]
[1723166577067,35.72330442,161.7,161.62,16.17154112]
[1723166577068,8.64790442,161.7,161.62,16.17154112]
[1723166577272,6.1846,161.7,161.62,16.17154112]
[1723166577495,6.1846,161.7,161.62,49.43154112]
[1723166578097,6.1846,161.7,161.64,6.1863]
[1723166578297,3.19560128,161.72,161.65,16.16822246]
[1723166578497,6.1842,161.71,161.65,22.35432246]
[1723166578670,6.1843,161.7,161.65,22.35432246]
[1723166578875,6.1839,161.71,161.65,16.16822246]
[1723166579099,35.69032451,161.74,161.65,22.35432246]
[1723166579305,6.1847,161.69,161.65,0.70292246]
[1723166579477,33.26,161.72,161.62,33.26]
[1723166579677,6.1858,161.66,161.61,37.9573]
[1723166580290,6.1867,161.64,161.61,16.3015]
[1723166580499,33.26,161.68,161.61,16.3015]
[1723166580500,6.1862,161.65,161.61,16.3015]
[1723166580696,6.1877,161.62,161.57,15.4723]